Cogmind - Beta 16 @@@ ROGUE MODE // 2025.11.15 @ 17:08:47 Player: Anting Result: Destroyed by NA-PTB(R) with Subdweller Laser Performance ------------- Evolutions (0) 0 Regions Visited (2) 400 Robots Destroyed (29) 145 Value Destroyed (817) 817 Prototype IDs (0) 0 Alien Tech Used (0) 0 Bonus (0) 0 TOTAL SCORE: 1362 Bonus ------- None Cogmind --------- Core Integrity 0/250 Matter 288/300 Energy 255/265 System Corruption 2% Temperature Cool (6) Movement Rolling (110) Location -10/Subcaves Parts ------- > --- POWER (1) -------- Improved Ion Engine > --- PROPULSION (2) --- Subdweller Monowheel Subdweller Monowheel > --- UTILITY (2) ------ Large Storage Unit Seismic Detector > --- WEAPON (2) ------- Subdweller Beam Cannon Subdweller Machine Gun > --- INVENTORY (15) --- Subdweller Monowheel Heat Sink Subdweller Optics Subdweller Optics Subdweller Optics Subdweller Optics Scrap Shield EM Pulse Gun Subdweller Laser Heavy Assault Rifle Grenade Launcher Subdweller Shrapnel Launcher Peak State ------------ > --- POWER ------------ Improved Ion Engine > --- PROPULSION ------- Subdweller Monowheel Subdweller Monowheel > --- UTILITY ---------- Large Storage Unit Seismic Detector > --- WEAPON ----------- Subdweller Beam Cannon Subdweller Machine Gun > --- INVENTORY -------- Subdweller Monowheel Heat Sink Subdweller Optics Subdweller Optics Subdweller Optics Subdweller Optics Scrap Shield EM Pulse Gun Subdweller Laser Heavy Assault Rifle Grenade Launcher Subdweller Shrapnel Launcher [Rating: 14] Favorites ----------- Power Ion Engine Engine Ion Engine Propulsion Light Treads Treads Light Treads Leg Aluminum Leg Wheel Subdweller Monowheel Utility Seismic Detector Device Seismic Detector Storage Large Storage Unit Protection Light Armor Plating Weapon Assault Rifle Energy Gun Medium Laser Energy Cannon Subdweller Beam Cannon Ballistic Gun Assault Rifle Build | -11 -10 -10 ------- Run | Yrd Mat Sub Slots Evolved . | . . . Power . | . . . Propulsion . | . . . Utility . | . . . Weapon . | . . . Parts Attached 22 | 5 6 11 Power 3 | 1 . 2 Engine 3 | 1 . 2 Core . | . . . Reactor . | . . . Propulsion 6 | 2 . 4 Treads 2 | 2 . . Leg 2 | . . 2 Wheel 2 | . . 2 Hover . | . . . Flight . | . . . Utility 6 | 1 4 1 Device 2 | . 2 . Storage 3 | 1 2 . Processor . | . . . Hackware . | . . . Protection 1 | . . 1 Artifact . | . . . Weapon 7 | 1 2 4 Energy Gun 2 | . 1 1 Energy Cannon 1 | . . 1 Ballistic Gun 4 | 1 1 2 Ballistic Cannon . | . . . Launcher . | . . . Special Weapon . | . . . Impact Weapon . | . . . Slashing Weapon . | . . . Piercing Weapon . | . . . Special Melee Weapon . | . . . Unidentified Prototypes . | . . . Parts Lost 11 | . . 11 Power 2 | . . 2 Propulsion 4 | . . 4 Utility 1 | . . 1 Weapon 4 | . . 4 Highest Loss Streak 4 | . . 4 To Critical Strikes 1 | . . 1 Average Backups 9 | 4 7 12 Power . | . 1 . Propulsion 1 | 1 2 1 Utility 3 | . 1 5 Weapon 3 | 1 2 4 Tool/Special . | . . . Unused Backups 13 | . . 13 Power 1 | . . 1 Propulsion 1 | . . 1 Utility 5 | . . 5 Weapon 6 | . . 6 Tool/Special . | . . . Average Slot Usage (%) 96 | . 95 98 Engine 13 | . 14 13 Treads 15 | . 27 4 Leg 10 | . . 20 Device 12 | . 10 13 Storage 14 | . 14 14 Energy Gun 9 | . 10 8 Ballistic Gun 17 | . 17 18 Peak Build Rating 14 | 5 8 14 Average Rating 8 | 4 6 9 On Entrance 4 | . 5 7 Avg Prop Armor Cover (%) 14 | 33 . 9 Naked Turns . | . . . Heaviest Build 40 | 12 30 40 Greatest Support 40 | 40 40 40 Greatest Overweight (x) 9 | 2 9 2 Average Overweight (x) . | . . . Largest Inventory Capacity 15 | 8 15 15 Average Capacity 12 | 6 10 15 Most Carried 15 | 5 10 15 Average Carried 10 | 4 7 13 Final Capacity 15 | 8 15 15 Final Carried 13 | 5 9 13 Class Distribution -------------------- 93% | Mutant 6% | Scavenger-Mutant Dominant Class ---------------- Mutant | -10/Materials Mutant | -10/Subcaves Resources | -11 -10 -10 ----------- Run | Yrd Mat Sub Matter Collected 764 | 165 243 356 Remotely . | . . . Salvage Created 1117 | . 549 568 Parts 81 | . 42 39 Haulers Intercepted 1 | . 1 . Recyclers Shooed . | . . . Parts Field Recycled . | . . . Retrieved Matter . | . . . Parts Self-Destructed 8 | . . 8 Prevented . | . . . Parts Restored . | . . . Kills | -11 -10 -10 ------- Run | Yrd Mat Sub Combat Hostiles Destroyed 23 | . 12 11 Guns 23 | . 12 11 Classes Destroyed 10 | . 8 2 Worker 1 | . 1 . Builder 1 | . 1 . Tunneler 1 | . 1 . Hauler 1 | . 1 . Operator 1 | . 1 . Watcher 1 | . 1 . Swarmer 4 | . 4 . Grunt 8 | . 8 . Sentry 1 | . . 1 Subdweller 10 | . . 10 Best Kill Streak 7 | . 7 2 Combat Bots Only 6 | . 6 2 Max Kills in Single Turn 2 | . 2 1 Gunslinging 1 | . 1 . Exploded . | . . . Melee . | . . . Uniques/NPCs Destroyed . | . . . Combat | -11 -10 -10 -------- Run | Yrd Mat Sub Hostile Shots Fired 130 | . 63 67 Missed 39 | . 20 19 Hits 91 | . 43 48 Projectile 91 | . 43 48 Critical Strikes 3 | . . 3 Damage Taken 1426 | . 466 960 Core 258 | . 81 177 Absorbed by Shields . | . . . Core Remaining (%) 100 | 100 . . Volleys Fired 82 | . 32 50 Largest 2 | . 2 2 Hottest 110 | . 70 110 Shots Fired 160 | . 64 96 Gun 157 | . 64 93 Cannon 3 | . . 3 Launcher . | . . . Special . | . . . Kinetic 96 | . 32 64 Thermal 64 | . 32 32 Explosive . | . . . Electromagnetic . | . . . Robot Hit Streak 22 | . 6 22 Robot Miss Streak 2 | . 2 1 Penetration Max . | . . . Secondary Targets 4 | . 2 2 Max Gunslinging Chain 1 | . 1 1 Shots Hit Robots 118 | . 46 72 Core Hits 54 | . 29 25 Critical Kills . | . . . Critical Parts Destroyed 1 | . . 1 Critical Strikes 7 | . 5 2 Burn 5 | . 5 . Destroy 2 | . . 2 Melee Attacks . | . . . Impact . | . . . Slashing . | . . . Piercing . | . . . Sneak Attacks . | . . . Combat Hostiles . | . . . Follow-up Attacks . | . . . Damage Inflicted 1809 | . 592 1217 Guns 1776 | . 587 1189 Cannons 28 | . . 28 Explosions . | . . . Melee . | . . . Ramming 5 | . 5 . Kinetic 1019 | . 299 720 Thermal 785 | . 288 497 Explosive . | . . . Electromagnetic . | . . . Impact . | . . . Slashing . | . . . Piercing . | . . . Highest Corruption 2 | . 2 2 Average Corruption 2 | . 2 2 Corruption Purged . | . . . Corruption Blocked . | . . . Effects 28 | . 9 19 Message Errors 5 | . 1 4 Matter Fused 8 | . 4 4 Heat Flow Errors 7 | . 2 5 Energy Discharges 6 | . 1 5 Data Loss (major) 2 | . 1 1 Overload Shots . | . . . Overflow Damage . | . . . Projectiles . | . . . Explosions . | . . . Melee . | . . . Knockbacks . | . . . Impact . | . . . Kinetic . | . . . Secondary . | . . . Self-Inflicted Damage . | . . . Shots . | . . . Rammed 1 | . 1 . Targets Rammed 1 | . 1 . Kicked . | . . . Crushed . | . . . Highest Temperature 258 | . 258 245 Average Temperature 78 | . 64 107 Received Heat Transfer 598 | . 168 430 Siege Activations . | . . . Martial Activations . | . . . Shielding Activations . | . . . Robots Disrupted . | . . . Combat Hostiles . | . . . Robots Corrupted . | . . . Combat Hostiles . | . . . Parts Fried . | . . . Impact Corruptions . | . . . Robots Melted . | . . . Combat Hostiles . | . . . Parts Melted 2 | . 2 . Heat Transferred 1833 | . 1221 612 Parts Sabotaged . | . . . Parts Stolen . | . . . Parts Stripped . | . . . Power Chain Reactions . | . . . Alert | -11 -10 -10 ------- Run | Yrd Mat Sub Maximum Alert Level . | . . . Low Security (%) 100 | 100 100 . Level 1 . | . . . Level 2 . | . . . Level 3 . | . . . Level 4 . | . . . Level 5 . | . . . High Security . | . . . Max Security . | . . . Peak Influence 166 | . 166 . Initial . | . . . Average 49 | . 55 . Influence Increases 486 | . 421 65 Destroy 0b10 Robot/C 260 | . 240 20 Destroy 0b10 Robot/NC 30 | . 30 . Destroy Leader 54 | . 54 . Successful Hack 22 | . 22 . Select Force Hacks 30 | . 30 . Lose Combat Pursuer 90 | . 45 45 Influence Decreases 486 | . 343 143 Entered New Map 38 | . . 38 Time Decay 427 | . 343 84 Lost Part 21 | . . 21 Squads Dispatched 3 | . 3 . Investigation 2 | . 2 . Extermination . | . . . Reinforcement 1 | . 1 . Assault . | . . . Garrison . | . . . Intercept . | . . . Searches Triggered . | . . . Construction Impeded . | . . . Haulers Reinforced . | . . . Active Scanning Responses . | . . . Cargo Convoy Interrupts . | . . . Stealth | -11 -10 -10 --------- Run | Yrd Mat Sub Distress Signals 2 | . 2 . Communications Jammed . | . . . Distress Signals . | . . . Times Spotted 35 | . 22 13 Peak Tracking Total 9 | . 9 3 Tactical Retreats 5 | . 3 2 Traps | -11 -10 -10 ------- Run | Yrd Mat Sub Traps Triggered 6 | . 6 . Indirectly . | . . . Trap Hack Attempts . | . . . Triggered . | . . . Disarmed . | . . . Reprogrammed . | . . . Reused . | . . . Traps Extracted . | . . . Installed . | . . . Triggered . | . . . Machines | -11 -10 -10 ---------- Run | Yrd Mat Sub Machines Disabled . | . . . Max in Single Turn . | . . . Machines Repaired . | . . . Machines Dismantled . | . . . Machines Sabotaged . | . . . Overloaded Fab Kills . | . . . Hacking | -11 -10 -10 --------- Run | Yrd Mat Sub Machines Accessed 4 | . 3 1 Terminals 2 | . 2 . Fabricators . | . . . Repair Stations . | . . . Recycling Units 1 | . 1 . Scanalyzers . | . . . Garrison Access . | . . . Total Hacks 11 | . 8 3 Successful 9 | . 6 3 Failed 2 | . 2 . Catastrophic . | . . . Database Lockouts . | . . . Manual 8 | . 8 . Terminals 7 | . 7 . Fabricators . | . . . Repair Stations . | . . . Recycling Units 1 | . 1 . Scanalyzers . | . . . Garrison Access . | . . . Terminal Hacks 4 | . 1 3 Record 3 | . . 3 Branch Access Points 1 | . 1 . Fabricator Hacks . | . . . Repair Station Hacks . | . . . Recycling Unit Hacks . | . . . Scanalyzer . | . . . Garrison Access Hacks . | . . . Unauthorized Hacks 5 | . 5 . Terminals 4 | . 4 . Botnet 1 | . 1 . Operators 1 | . 1 . Skim 2 | . 2 . Fabricators . | . . . Repair Stations . | . . . Recycling Units 1 | . 1 . Tunnel 1 | . 1 . Scanalyzers . | . . . Garrison Access . | . . . Data Cores Recovered . | . . . Used . | . . . Hacking Detections 2 | . 2 . Full Trace Events . | . . . Feedback Events . | . . . Feedback Blocked . | . . . Robot Schematics Acquired . | . . . Robots Built . | . . . Authchips . | . . . Time . | . . . Total Robot Build Rating . | . . . Part Schematics Acquired . | . . . Parts Built . | . . . Authchips . | . . . Time . | . . . Total Part Build Rating . | . . . Part Studies Acquired . | . . . Parts Repaired . | . . . Time . | . . . Parts Recycled . | . . . Recycled Matter . | . . . Retrieved Matter . | . . . Retrieved Components . | . . . Parts Scanalyzed . | . . . Part Schematics Acquired . | . . . Parts Damaged . | . . . Bothacking | -11 -10 -10 ------------ Run | Yrd Mat Sub Used RIF Installer . | . . . Robots Hacked . | . . . Non-combat . | . . . Combat . | . . . Robot Hacks Applied . | . . . Relay Couplers Released . | . . . Fabnet Peak Effective % . | . . . Robots Rewired . | . . . Allies Hacked . | . . . Hacks Repelled . | . . . Allies | -11 -10 -10 -------- Run | Yrd Mat Sub Total Allies . | . . . Largest Group . | . . . Highest-Rated Group . | . . . Highest-Rated Ally . | . . . Total Orders . | . . . Ally Attacks . | . . . Total Damage . | . . . Kills . | . . . Allies Corrupted . | . . . Allies Melted . | . . . Intel | -11 -10 -10 ------- Run | Yrd Mat Sub Active Infowar (turns) 2185 | . 653 1532 Seismic 2185 | . 653 1532 Robot Analysis Total . | . . . Derelict Logs Recovered 2 | . . 2 Drone Launches . | . . . Drone Recoveries . | . . . Exploration | -11 -10 -10 ------------- Run | Yrd Mat Sub Turns Passed 3208 | 175 1452 1581 Spaces Moved 1279 | 114 398 767 Core 22 | 21 1 . Treads 626 | 93 397 136 Legs 508 | . . 508 Wheels 123 | . . 123 Hover . | . . . Flight . | . . . Fastest Speed 50 | 50 160 120 Average Speed 167 | 143 161 173 Slowest Speed 500 | 160 500 260 Overloaded Moves . | . . . Propulsion Burnouts . | . . . Robots Hopped . | . . . Potential Cave-ins . | . . . Cave-ins Triggered . | . . . Exploration Rate (%) 40 | 6 68 48 Regions Visited 2 Branch Regions 1 Pre-discovered Areas 2 | . 1 1 Known Exits Taken . | . . . Unknown Exits Taken 2 | 1 1 . Scrap Searched . | . . . Spaces Dug . | . . . Terrain Destroyed . | . . . Melee . | . . . Projectile . | . . . AOE . | . . . Terrain Rammed . | . . . Walls Destroyed . | . . . Machines Disabled . | . . . Actions | -11 -10 -10 --------- Run | Yrd Mat Sub Total 2187 | 123 1141 923 Wait 766 | . 694 72 Move 1277 | 113 397 767 Hop . | . . . Pick Up 26 | 5 4 17 Fast Attach 12 | 5 7 . Attach 13 | . 2 11 Detach 1 | . 1 . Swap 5 | . 2 3 Drop 4 | . 1 3 Fire 82 | . 32 50 Melee . | . . . Ram . | . . . Kick . | . . . Crush 1 | . 1 . Escape Stasis . | . . . Rewire . | . . . Trap . | . . . Miscellaneous . | . . . Route ------- -11/Scrapyard -10/Materials (discovered 6 exits: [*Mat x3] / *Min x2 / *Sub) -10/Subcaves (discovered 1 exit: [*Mat]) History --------- Turn | Location | Event 11 | -11/Scrapyard | Discovered new exit (range 15) 176 | -11/Scrapyard | Entered Materials 311 | -10/Materials | Build established: Mutant 555 | -10/Materials | Discovered new exit (range 16) 579 | -10/Materials | Identified exit to Mines 796 | -10/Materials | Discovered new exit (range 8) 1101 | -10/Materials | Discovered new exit (range 11) 1266 | -10/Materials | Discovered new exit (range 5) 1589 | -10/Materials | Discovered new exit (range 8) 1628 | -10/Materials | Entered Subcaves 1660 | -10/Subcaves | Learned 4 Materials zone layouts 1875 | -10/Subcaves | Discovered new exit (range 16) 1904 | -10/Subcaves | Core integrity fell below 50% 1944 | -10/Subcaves | Lost 4 parts (1p2n1w) 2234 | -10/Subcaves | Learned location of Storage (-8) 2254 | -10/Subcaves | Core integrity fell below 20% 2432 | -10/Subcaves | Visited Clippyterm 2438 | -10/Subcaves | Learned Research machine intel 2953 | -10/Subcaves | A swath of the cavern ceiling suddenly collapsed 3084 | -10/Subcaves | Shifting Twisted Machinery released Sub. Shrapnel Launcher 3209 | -10/Subcaves | Destroyed by NA-PTB(R) with Subdweller Laser Last Messages --------------- 03076_ P3-EAX(u) deconstructs Twisted Machinery. 03082_ Acquired 16 matter. 03083_ Acquired 10 matter. Sub. Shrapnel Launcher falls loose from the Twisted Machinery. 03106_ System corrupted: Heat flow error (+177). 03108_ Aluminum Leg destroyed. 03111_ 2X-ZUE(R) destroyed. 03111_ Switching to secondary target: HP-XJR(R). 03112_ Sub. Machine Gun destroyed. 03115_ HP-XJR(R) destroyed. 03118_ Acquired 16 matter. 03120_ Acquired Sub. Laser. 03125_ Acquired Sub. Monowheel. 03130_ System corrupted: Substantial component data lost. 03139_ Acquired Sub. Shrapnel Launcher. 03148_ System corrupted: Heat flow error (+111). 03181_ P3-EAX(u) deconstructs Twisted Machinery. 03195_ NA-PTB(R): "MADSUB!" Map ----- +----------------------------------------------------+ | ??????????????????##??????? #??????????????????? | | ??????????????????# #?????# #??????????????????? | | ?????? ???????????# ????# #???????????????????? | | ??? ???????????? ##### #???????????????????? | | ???? ????????????#"#"# #???????????????????? | | ????" ???????????##""# ??????????????????????? | | ????# ???????????#" ##?????????????????????????? | | ???## ???????????##"##?????????????????????????? | | ???#" #???????????# ##?????????????????????????? | | ???#" "#?????????## #??????????????????????????? | | ???#" " ##???????# #??????????????????????????? | | ??##" %/""#???????# ##?????????????????????????? | | ??#" %!"##??????## #?????????????????????????? | | ??## "#??????## ##?????????????????????????? | | # #"" ##?????# #??????????????????????????? | | #?##### #??????????????????????????? | | #?# # ##?????????????????????????? | | # " " #### #?????????????????????????? | | ????#" " ## ## ###?????????????????????????? | | ????## " ## ###???????????????????????????? | | ?????####### # ##????###?????????????????????? | | ???????????# "" #????# #?????????????????????? | | ??????????## " """ ###### #?????????????????????? | | ?????????## ""####"" ## #?????????????????????? | | ?????????# "##??##" #?????????????????????? | | ????????## ""#????# R @##?????????????????????? | | ????????# ""##?#### ####??????????????????????? | | ????????#""#####;;; %######?????????????????????? | | ????????##"#?# *"!## #?????????????????????? | | ?????????###### & ######????????????????? | | ?????????##""##" ## ##???????????????? | | ????????## #" "# ## #???????????????? | | ????????# #" ""# ##%! #???????????????? | | ????????# # """# = ##??????????????? | | ????????# ## ##?????????????? | | ????????##""""" ## #########?????? | | ????????## # ###### ## ##????? | | ????????# #### #????## #????? | | ????????# ##??## #???## ## #??? | | ???????##"" # #????# #### ### #### #??? | | ??????##" # ##?????# #?####??######??? | | ??????# ### #### #######?????????? | | ?###??# ## # " # #####?????? | | ?# ##?## % ####### " #### ## ##????? | | ## %#### "###?????# ## "= # ## #????? | | # &&&# #???????# # "#?##"!%" ### #????? | | # !!% #??????? ?#"#### !%= ##?# ## ##???? | | " &# #?????????????# "!&%! ######## ##??? | | #### #?????????????# ""&* ## #??# #### | | # "" ### #### #??## ## "! #?## | +----------------------------------------------------+ Best States ------------- Heat Dissipation 35 Energy Generation 12 Energy Capacity 265 Matter Stores 300 Matter Capacity 300 Sight Range 16 Terrain Scan Density 10 Armor Coverage 150 Evasion (%) 50 Recoil Reduction 2 Item Schematics ----------------- None Robot Schematics ------------------ None Fabricated ------------ Nothing Repaired ---------- Nothing Studied --------- None Alien Tech Used ----------------- None Achievements -------------- None Challenges ------------ None Game ------ Seed DataSingularityClaymores Manual? 0 Play Time 00:13:31 Cumulative 374.3 hours Start 2025.11.15 @ 16:54:21 End 2025.11.15 @ 17:08:47 Sessions 1 Manual Loads 0 Difficulty Rogue Special Mode None Game No. 254 Rogue 254 Adventurer 0 Explorer 0 Win Type - Total 24 Types 9/0/8/1/1/0/2/1/1/1 Lore% 83 Gallery% 79 Achievement% 68 Wizard Run 0 Options --------- Layout 1 ASCII 0 Keyboard 0 Movement Mouse Keybinds 0 Fullscreen 2 Font 24/Smallcaps Map View 50x35 Zoom Use 0% Tactical HUD 1 Map Filters NONE Filters NONE Steam 1 RUN: df961525-d6f8-49d3-98c8-c2573232b9ec